fUST/lending_fUST_20250905
["ID","MTS","AMOUNT","RATE_DAILY","PERIOD"]
[383639243,1757056244682,-151.0,0.00013972,2]
[383639244,1757056244692,-480.0,0.00013972,2]
[383639245,1757056244702,-151.0,0.00013972,2]
[383639246,1757056244711,-151.0,0.00013972,2]
[383639247,1757056244721,-151.0,0.00013972,2]
[383639248,1757056244730,-151.0,0.00013972,2]
[383639249,1757056244739,-480.0,0.00013972,2]
[383639250,1757056244749,-162.948238,0.00013972,2]
[383639251,1757056244758,-575.128706,0.00013972,2]
[383639252,1757056244768,-575.128706,0.00013972,2]
[383639253,1757056244777,-155.678776,0.00013972,2]
[383639254,1757056244786,-575.128706,0.00013972,2]
[383639255,1757056244798,-575.128706,0.00013972,2]
[383639256,1757056244807,-621.56687067,0.00013972,2]
[383639257,1757056244817,-480.0,0.00013972,2]
[383639258,1757056244826,-480.0,0.00013972,2]
[383639259,1757056244835,-977.04,0.00013972,2]
[383639260,1757056244844,-480.0,0.00013972,2]
[383639261,1757056244854,-342.454695,0.00013972,2]
[383639262,1757056244863,-983.81,0.00013972,2]
[383639263,1757056244872,-342.454695,0.00013972,2]
[383639264,1757056244881,-342.454695,0.00013972,2]
[383639265,1757056244891,-342.454695,0.00013972,2]
[383639266,1757056244900,-151.0,0.00013972,2]
[383639267,1757056244910,-2562.62,0.00013972,2]
[383639268,1757056244920,-480.0,0.00013972,2]
[383639269,1757056244931,-480.0,0.00013972,2]
[383639270,1757056244941,-480.0,0.00013972,2]
[383639271,1757056244951,-480.0,0.00013972,2]
[383639272,1757056244961,-480.0,0.00013972,2]
[383639273,1757056244971,-577.562146,0.00013972,2]
[383639274,1757056244980,-480.0,0.00013972,2]
[383639275,1757056244991,-577.562146,0.00013972,2]
[383639276,1757056245001,-577.562146,0.00013972,2]
[383639277,1757056245010,-480.0,0.00013972,2]
[383639278,1757056245019,-577.562146,0.00013972,2]
[383639279,1757056245029,-151.0,0.00013972,2]
[383639280,1757056245038,-480.0,0.00013972,2]
[383639281,1757056245048,-151.0,0.00013972,2]
[383639282,1757056245057,-692.48,0.00013972,2]
[383639283,1757056245066,-480.0,0.00013972,2]
[383639284,1757056245076,-682.18,0.00013972,2]
[383639285,1757056245085,-1404.37,0.00013972,2]
[383639286,1757056245095,-559.22,0.00013972,2]
[383639287,1757056245104,-480.0,0.00013972,2]
[383639288,1757056245117,-151.0,0.00013972,2]
[383639289,1757056245126,-151.0,0.00013972,2]
[383639290,1757056245136,-151.0,0.00013972,2]
[383639291,1757056245146,-266.885492,0.00013972,2]
[383639292,1757056245158,-151.0,0.00013972,2]
[383639293,1757056245168,-480.0,0.00013972,2]
[383639294,1757056245177,-151.0,0.00013972,2]
[383639295,1757056245187,-151.0,0.00013972,2]
[383639296,1757056245197,-151.0,0.00013972,2]
[383639297,1757056245207,-786.05,0.00013972,2]
[383639298,1757056245216,-480.0,0.00013972,2]
[383639299,1757056245226,-480.0,0.00013972,2]
[383639300,1757056245235,-151.0,0.00013972,2]
[383639301,1757056245245,-480.0,0.00013972,2]
[383639302,1757056245254,-480.0,0.00013972,2]
[383639303,1757056245263,-480.0,0.00013972,2]
[383639304,1757056245273,-2037.37,0.00013972,2]
[383639305,1757056245283,-480.0,0.00013972,2]
[383639306,1757056245292,-480.0,0.00013972,2]
[383639307,1757056245302,-177.771614,0.00013972,2]
[383639308,1757056245311,-480.0,0.00013972,2]
[383639309,1757056245322,-153.276402,0.00013972,2]
[383639310,1757056245331,-480.0,0.00013972,2]
[383639311,1757056245339,-518.18,0.00013972,2]
[383639312,1757056245348,-480.0,0.00013972,2]
[383639313,1757056245357,-151.0,0.00013972,2]
[383639314,1757056245365,-641.24,0.00013972,2]
[383639315,1757056245374,-151.0,0.00013972,2]
[383639316,1757056245383,-480.0,0.00013972,2]
[383639317,1757056245391,-151.0,0.00013972,2]
[383639318,1757056245400,-232.303216,0.00013972,2]
[383639319,1757056245408,-2231.83,0.00013972,2]
[383639320,1757056245417,-480.0,0.00013972,2]
[383639321,1757056245427,-480.0,0.00013972,2]
[383639322,1757056245436,-480.0,0.00013972,2]
[383639323,1757056245446,-4681.63,0.00013972,2]
[383639324,1757056245455,-582.79,0.00013972,2]
[383639325,1757056245464,-157.870771,0.00013972,2]
[383639326,1757056245474,-480.0,0.00013972,2]
[383639327,1757056245484,-983.17,0.00013972,2]
[383639328,1757056245493,-778.54,0.00013972,2]
[383639329,1757056245502,-480.0,0.00013972,2]
[383639330,1757056245512,-480.0,0.00013972,2]
[383639331,1757056245521,-480.0,0.00013972,2]
[383639332,1757056245531,-502.52,0.00013972,2]
[383639333,1757056245543,-899.99,0.00013972,2]
[383639334,1757056245554,-491.67157076,0.00013972,2]
[383639335,1757056245564,-480.0,0.00013972,2]
[383639336,1757056245575,-460.63180389,0.00013972,2]
[383639337,1757056245589,-485.48523707,0.00013972,2]
[383639339,1757056245598,-480.0,0.00013972,2]
[383639340,1757056245607,-480.0,0.00013972,2]
[383639341,1757056245617,-480.0,0.00013972,2]
[383639342,1757056245626,-154.937907,0.00013972,2]
[383639343,1757056245636,-480.0,0.00013972,2]
[383639344,1757056245646,-982.41,0.00013972,2]
[383639345,1757056245656,-480.0,0.00013972,2]
[383639346,1757056245667,-151.0,0.00013972,2]
[383639347,1757056245676,-480.0,0.00013972,2]
[383639348,1757056245685,-480.0,0.00013972,2]
[383639349,1757056245696,-484.2803269,0.00013972,2]
[383639350,1757056245706,-480.0,0.00013972,2]
[383639351,1757056245716,-480.0,0.00013972,2]
[383639352,1757056245725,-480.0,0.00013972,2]
[383639353,1757056245735,-1557.71,0.00013972,2]
[383639354,1757056245744,-1465.28,0.00013972,2]
[383639355,1757056245753,-516.464048,0.00013972,2]
[383639356,1757056245762,-592.50287164,0.00013972,2]
[383639357,1757056245770,-480.0,0.00013972,2]
[383639358,1757056245778,-480.0,0.00013972,2]
[383639359,1757056245787,-1172.55,0.00013972,2]
[383639360,1757056245796,-480.0,0.00013972,2]
[383639362,1757056245805,-585.00476031,0.00013972,2]
[383639363,1757056245814,-480.0,0.00013972,2]
[383639364,1757056245823,-151.0,0.00013972,2]
[383639365,1757056245832,-480.0,0.00013972,2]
[383639366,1757056245842,-230.949878,0.00013972,2]
[383639367,1757056245852,-480.0,0.00013972,2]
[383639368,1757056245862,-230.949878,0.00013972,2]
[383639369,1757056245873,-480.0,0.00013972,2]
[383639370,1757056245884,-230.949878,0.00013972,2]
[383639371,1757056245894,-480.0,0.00013972,2]
[383639373,1757056245903,-230.949878,0.00013972,2]
[383639374,1757056245912,-663.36,0.00013972,2]
[383639375,1757056245923,-480.0,0.00013972,2]
[383639376,1757056245934,-615.12,0.00013972,2]
[383639377,1757056245943,-957.59,0.00013972,2]
[383639378,1757056245953,-151.0,0.00013972,2]
[383639379,1757056245963,-783.929837,0.00013972,2]
[383639380,1757056245972,-151.0,0.00013972,2]
[383639381,1757056245982,-480.0,0.00013972,2]
[383639382,1757056245991,-783.929837,0.00013972,2]
[383639383,1757056246001,-249.286569,0.00013972,2]
[383639384,1757056246011,-480.0,0.00013972,2]
[383639385,1757056246020,-480.0,0.00013972,2]
[383639386,1757056246030,-480.0,0.00013972,2]
[383639387,1757056246039,-153.686977,0.00013972,2]
[383639388,1757056246049,-783.929837,0.00013972,2]
[383639389,1757056246059,-151.0,0.00013972,2]
[383639390,1757056246068,-158.098307,0.00013972,2]
[383639391,1757056246076,-783.929837,0.00013972,2]
[383639392,1757056246085,-480.0,0.00013972,2]
[383639393,1757056246094,-1263.19,0.00013972,2]
[383639394,1757056246103,-500.0,0.00013972,2]
[383639395,1757056246112,-300.63066952,0.00013973,2]
[383639396,1757056246122,-273.174221,0.00013973,2]
[383639397,1757056246131,-500.0,0.00014042,2]
[383639398,1757056246142,-157.0,0.00014042,2]
[383639399,1757056246151,-151.0,0.00014042,2]
[383639400,1757056246160,-442.918412,0.00014042,2]
[383639401,1757056246169,-151.0,0.00014042,2]
[383639402,1757056246179,-442.918412,0.00014042,2]
[383639403,1757056246188,-442.918412,0.00014042,2]
[383639404,1757056246197,-151.0,0.00014042,2]
[383639405,1757056246206,-442.918412,0.00014042,2]
[383639406,1757056246215,-155.948112,0.00014042,2]
[383639407,1757056246224,-151.0,0.00014042,2]
[383639408,1757056246233,-151.0,0.00014042,2]
[383639409,1757056246242,-151.0,0.00014042,2]
[383639410,1757056246251,-152.832321,0.00014042,2]
[383639411,1757056246261,-151.0,0.00014042,2]
[383639412,1757056246270,-151.0,0.00014042,2]
[383639413,1757056246279,-152.634328,0.00014042,2]
[383639414,1757056246288,-480.0,0.00014043,2]
[383639415,1757056246297,-271.13035792,0.00014043,2]
[383639418,1757056246421,-208.86964208,0.00014043,2]
[383639419,1757056246431,-220.19909487,0.00014043,2]
[383639420,1757056246442,-259.80090513,0.00014043,2]
[383639421,1757056246453,-480.0,0.00014043,2]
[383639422,1757056246465,-480.0,0.00014043,2]
[383639423,1757056246475,-281.19909487,0.00014043,2]
[383639424,1757056246486,-198.80090513,0.00014043,2]
[383639425,1757056246496,-480.0,0.00014043,2]
[383639426,1757056246506,-482.64233866,0.00014043,2]
[383639427,1757056246514,-480.0,0.00014043,2]
[383639428,1757056246523,-480.0,0.00014043,2]
[383639429,1757056246533,-480.0,0.00014043,2]
[383639430,1757056246542,-480.0,0.00014043,2]
[383639431,1757056246552,-480.0,0.00014043,2]
[383639432,1757056246561,-480.0,0.00014043,2]
[383639433,1757056246571,-480.0,0.00014043,2]
[383639434,1757056246580,-480.0,0.00014043,2]
[383639435,1757056246590,-275.48352916,0.00014043,2]
[383639436,1757056246698,-480.0,0.00014043,2]
[383639437,1757056246708,-480.0,0.00014043,2]
[383639438,1757056246717,-342.16364332,0.00014043,2]
[383639439,1757056246729,-137.83635668,0.00014043,2]
[383639440,1757056246739,-130.78286154,0.00014043,2]
[383639441,1757056246751,-351.47713846,0.00014043,2]
[383639442,1757056246761,-480.0,0.00014043,2]
[383639443,1757056246770,-480.0,0.00014043,2]
[383639444,1757056246780,-480.0,0.00014043,2]
[383639445,1757056246789,-480.0,0.00014043,2]
[383639446,1757056246798,-151.0,0.00014043,2]
[383639447,1757056246808,-482.01486142,0.00014043,2]
[383639448,1757056246818,-480.0,0.00014043,2]
[383639449,1757056246827,-480.0,0.00014043,2]
[383639450,1757056246837,-480.0,0.00014043,2]
[383639451,1757056246846,-625.74283632,0.00014043,2]
[383639452,1757056246856,-480.0,0.00014043,2]
[383639453,1757056246866,-480.0,0.00014043,2]
[383639454,1757056246875,-58.87675268,0.00014043,2]
[383639455,1757056247194,-482.06700503,0.00013698,2]
[383639456,1757056247203,-151.0,0.00013769,2]
[383639457,1757056247213,-151.0,0.00013972,2]
[383639458,1757056247223,-421.12324732,0.00014043,2]
[383639459,1757056247232,-371.46396305,0.00014043,2]
[383639460,1757056247241,-579.15659177,0.00014043,2]
[383639461,1757056247251,-480.0,0.00014043,2]
[383639462,1757056247260,-480.0,0.00014043,2]
[383639463,1757056247269,-480.0,0.00014043,2]
[383639464,1757056247279,-480.0,0.00014043,2]
[383639465,1757056247288,-520.63,0.00014043,2]
[383639466,1757056247297,-480.0,0.00014043,2]
[383639467,1757056247308,-480.0,0.00014043,2]
[383639468,1757056247317,-480.0,0.00014043,2]
[383639469,1757056247327,-480.0,0.00014043,2]
[383639470,1757056247336,-480.0,0.00014043,2]
[383639471,1757056247346,-36.55919283,0.00014043,2]
[383639472,1757056247781,-151.0,0.00013769,2]
[383639473,1757056247791,-151.0,0.00013769,2]
[383639474,1757056247801,-151.0,0.00013769,2]
[383639475,1757056247811,-151.0,0.00013972,2]
[383639476,1757056247821,-151.0,0.00013972,2]
[383639477,1757056247830,-151.0,0.00013972,2]
[383639478,1757056247840,-443.44080717,0.00014043,2]
[383639479,1757056247850,-480.0,0.00014043,2]
[383639480,1757056247859,-480.0,0.00014043,2]
[383639481,1757056247869,-570.52,0.00014043,2]
[383639482,1757056247878,-480.0,0.00014043,2]
[383639483,1757056247887,-480.0,0.00014043,2]
[383639484,1757056247896,-578.05,0.00014043,2]
[383639485,1757056247906,-153.533284,0.00014043,2]
[383639486,1757056247915,-480.0,0.00014043,2]
[383639487,1757056247924,-152.098444,0.00014043,2]
[383639488,1757056247933,-480.0,0.00014043,2]
[383639489,1757056247943,-480.0,0.00014043,2]
[383639490,1757056247952,-480.0,0.00014043,2]
[383639491,1757056247961,-480.0,0.00014043,2]
[383639492,1757056247971,-565.74816236,0.00014043,2]
[383639493,1757056247979,-480.0,0.00014043,2]
[383639494,1757056247989,-480.0,0.00014043,2]
[383639495,1757056247998,-481.91891233,0.00014043,2]
[383639496,1757056248007,-480.0,0.00014043,2]
[383639497,1757056248016,-480.0,0.00014043,2]
[383639498,1757056248025,-151.0,0.00014043,2]
[383639499,1757056248035,-151.0,0.00014043,2]
[383639500,1757056248044,-589.94,0.00014043,2]
[383639501,1757056248056,-151.537508,0.00014043,2]
[383639502,1757056248066,-480.0,0.00014043,2]
[383639503,1757056248075,-480.0,0.00014043,2]
[383639504,1757056248085,-480.0,0.00014043,2]
[383639505,1757056248095,-206.203675,0.00014043,2]
[383639506,1757056248104,-480.0,0.00014043,2]
[383639507,1757056248116,-480.0,0.00014043,2]
[383639508,1757056248127,-480.0,0.00014043,2]
[383639509,1757056248136,-151.0,0.00014043,2]
[383639510,1757056248146,-151.0,0.00014043,2]
[383639511,1757056248155,-480.0,0.00014043,2]
[383639512,1757056248165,-151.0,0.00014043,2]
[383639513,1757056248174,-151.0,0.00014043,2]
[383639514,1757056248184,-162.22799,0.00014043,2]
[383639515,1757056248193,-590.78992489,0.00014043,2]
[383639516,1757056248203,-480.0,0.00014043,2]
[383639517,1757056248213,-166.35502102,0.00014043,2]
[383639518,1757056248223,-151.0,0.00014043,2]
[383639519,1757056248232,-480.0,0.00014043,2]
[383639520,1757056248242,-480.0,0.00014043,2]
[383639521,1757056248251,-151.0,0.00014043,2]
[383639522,1757056248260,-480.0,0.00014043,2]
[383639523,1757056248270,-151.0,0.00014043,2]
[383639524,1757056248280,-559.3473552,0.00014043,2]
[383639525,1757056248289,-480.0,0.00014043,2]
[383639526,1757056248298,-480.0,0.00014043,2]
[383639527,1757056248309,-480.0,0.00014043,2]
[383639528,1757056248318,-480.0,0.00014043,2]
[383639529,1757056248328,-480.0,0.00014043,2]
[383639530,1757056248338,-480.0,0.00014043,2]
[383639531,1757056248347,-480.0,0.00014043,2]
[383639532,1757056248357,-480.0,0.00014043,2]
[383639533,1757056248366,-480.0,0.00014043,2]
[383639534,1757056248376,-480.0,0.00014043,2]
[383639535,1757056248386,-480.0,0.00014043,2]
[383639536,1757056248396,-480.0,0.00014043,2]
[383639537,1757056248405,-480.0,0.00014043,2]
[383639538,1757056248415,-480.0,0.00014043,2]
[383639539,1757056248425,-480.0,0.00014043,2]
[383639540,1757056248435,-480.0,0.00014043,2]
[383639541,1757056248445,-480.0,0.00014043,2]
[383639542,1757056248455,-480.0,0.00014043,2]
[383639543,1757056248464,-480.0,0.00014043,2]
[383639544,1757056248474,-480.0,0.00014043,2]
[383639545,1757056248483,-480.0,0.00014043,2]
[383639546,1757056248493,-219.051261,0.00014043,2]
[383639547,1757056248503,-480.0,0.00014043,2]
[383639548,1757056248512,-480.0,0.00014043,2]
[383639549,1757056248522,-480.0,0.00014043,2]
[383639550,1757056248532,-480.0,0.00014043,2]
[383639551,1757056248541,-482.54798358,0.00014043,2]
[383639552,1757056248553,-480.0,0.00014043,2]
[383639553,1757056248562,-480.0,0.00014043,2]
[383639554,1757056248664,-151.0,0.00014043,2]
[383639555,1757056248674,-151.0,0.00014043,2]
[383639556,1757056248684,-151.0,0.00014043,2]
[383639557,1757056248693,-151.0,0.00014043,2]
[383639558,1757056248703,-153.215581,0.00014043,2]
[383639559,1757056248712,-151.0,0.00014043,2]
[383639560,1757056248722,-230.949878,0.00014043,2]
[383639561,1757056248731,-230.949878,0.00014043,2]
[383639562,1757056248741,-230.949878,0.00014043,2]
[383639563,1757056248750,-230.949878,0.00014043,2]
[383639564,1757056248759,-151.0,0.00014043,2]
[383639565,1757056248769,-783.929837,0.00014043,2]
[383639566,1757056248778,-151.0,0.00014043,2]
[383639567,1757056248788,-783.929837,0.00014043,2]
[383639568,1757056248798,-151.0,0.00014043,2]
[383639569,1757056248808,-783.929837,0.00014043,2]
[383639570,1757056248817,-783.929837,0.00014043,2]
[383639571,1757056248825,-151.0,0.00014043,2]
[383639572,1757056248834,-151.0,0.00014043,2]
[383639573,1757056248843,-151.0,0.00014043,2]
[383639574,1757056248852,-252.459974,0.00014043,2]
[383639575,1757056248861,-205.38794104,0.00014044,2]
[383639576,1757056248871,-157.0,0.00014044,2]
[383639577,1757056248879,-157.0,0.00014044,2]
[383639578,1757056248889,-234.25082911,0.00014044,2]
[383639579,1757056248896,-480.0,0.00014044,2]
[383639580,1757056248903,-151.0,0.00014044,2]
[383639581,1757056248910,-442.918412,0.00014044,2]
[383639582,1757056248917,-151.0,0.00014044,2]
[383639583,1757056248924,-442.918412,0.00014044,2]
[383639584,1757056248931,-442.918412,0.00014044,2]
[383639585,1757056248938,-151.0,0.00014044,2]
[383639586,1757056248945,-442.918412,0.00014044,2]
[383639587,1757056248953,-15.13394426,0.00014044,2]
[383639588,1757056248970,-135.86605574,0.00014044,2]
[383639589,1757056248979,-151.0,0.00014044,2]
[383639590,1757056248989,-2.39160246,0.00014044,2]
[383639591,1757056249001,-148.60839754,0.00014044,2]
[383639592,1757056249011,-151.0,0.00014044,2]
[383639593,1757056249021,-151.0,0.00014044,2]
[383639594,1757056249031,-51.39160246,0.00014044,2]
[383639595,1757056310251,1000.0,0.00018595,20]
[383639596,1757056323488,269644.21944482,0.00013571,2]
[383639597,1757056452499,277.61329389,0.00013417,2]
[383639599,1757056618291,495.56982053,0.00013598,2]
[383639601,1757056794199,186.01673614,0.00013598,2]
[383639602,1757056898521,433.62359292,0.00013598,2]
[383639605,1757057135326,186.01673611,0.00013598,2]
[383639608,1757057178825,379.42064384,0.00013598,2]
[383639610,1757057271681,303.0,0.00027397,120]
[383639668,1757057432520,-151.0,0.0001369,2]
[383639670,1757057432529,-250.0,0.0001369,2]
[383639672,1757057432539,-69.21261488,0.0001369,2]
[383639697,1757057438361,-81.78738512,0.0001369,2]
[383639699,1757057438371,-151.0,0.0001369,2]
[383639701,1757057438380,-87.21261488,0.0001369,2]
[383639707,1757057438449,-207.93326979,0.0001369,2]
[383639709,1757057438459,-151.0,0.0001369,2]
[383639710,1757057438468,-146.76320633,0.0001369,2]
[383639711,1757057438533,-4.23679367,0.0001369,2]
[383639712,1757057438543,-151.0,0.0001369,2]
[383639713,1757057438552,-151.0,0.0001369,2]
[383639714,1757057438562,-128.36969581,0.0001369,2]
[383639717,1757057440594,-22.63030419,0.0001369,2]
[383639718,1757057440604,-151.0,0.0001369,2]
[383639719,1757057440614,-151.0,0.0001369,2]
[383639720,1757057440623,-187.78006525,0.0001369,2]
[383639721,1757057440633,-151.0,0.0001369,2]
[383639722,1757057440643,-151.0,0.0001369,2]
[383639723,1757057440652,-151.0,0.0001369,2]
[383639724,1757057440662,-151.0,0.0001369,2]
[383639725,1757057440671,-151.0,0.0001369,2]
[383639726,1757057440680,-151.0,0.0001369,2]
[383639727,1757057440690,-151.0,0.0001369,2]
[383639728,1757057440699,-151.0,0.0001369,2]
[383639729,1757057440709,-151.0,0.0001369,2]
[383639730,1757057440718,-151.0,0.0001369,2]
[383639731,1757057440727,-151.0,0.0001369,2]
[383639732,1757057440736,-151.0,0.0001369,2]
[383639733,1757057440746,-151.0,0.0001369,2]
[383639734,1757057440756,-151.0,0.0001369,2]
[383639735,1757057440766,-151.0,0.0001369,2]
[383639736,1757057440775,-151.0,0.0001369,2]
[383639737,1757057440784,-300.0,0.00013696,2]
[383639738,1757057440792,-1200.0,0.00013696,2]
[383639739,1757057440801,-38029.18471004,0.00013697,2]
[383639740,1757057440823,-11970.81528996,0.00013697,2]
[383639741,1757057440832,-228.51432836,0.00013697,2]
[383639742,1757057440841,-405.98344705,0.00013697,2]
[383639743,1757057440849,-500.0,0.00013697,2]
[383639744,1757057440859,-500.0,0.00013697,2]
[383639745,1757057440868,-500.0,0.00013697,2]
[383639746,1757057440880,-344.35453826,0.00013697,2]
[383639747,1757057440889,-500.0,0.00013697,2]
[383639748,1757057440899,-500.0,0.00013697,2]
[383639749,1757057440909,-500.0,0.00013697,2]
[383639750,1757057440918,-500.0,0.00013697,2]
[383639751,1757057440928,-500.0,0.00013697,2]
[383639752,1757057440937,-500.0,0.00013697,2]
[383639753,1757057440947,-500.0,0.00013697,2]
[383639754,1757057440956,-500.0,0.00013697,2]
[383639755,1757057440966,-500.0,0.00013697,2]
[383639756,1757057440975,-500.0,0.00013697,2]
[383639757,1757057440984,-500.0,0.00013697,2]
[383639758,1757057440994,-500.0,0.00013697,2]
[383639759,1757057441004,-500.0,0.00013697,2]
[383639760,1757057441014,-500.0,0.00013697,2]
[383639761,1757057441025,-500.0,0.00013697,2]
[383639762,1757057441033,-635.0,0.00013697,2]
[383639763,1757057441041,-482.02423246,0.00013698,2]
[383639764,1757057441049,-480.0,0.00013698,2]
[383639765,1757057441058,-480.0,0.00013698,2]
[383639766,1757057441067,-474.0,0.00013698,2]
[383639767,1757057441078,-480.83529314,0.00013698,2]
[383639768,1757057441092,-480.0,0.00013698,2]
[383639769,1757057441102,-481.02814707,0.00013698,2]
[383639770,1757057441111,-484.46258003,0.00013698,2]
[383639771,1757057441121,-481.80064889,0.00013698,2]
[383639772,1757057441130,-481.30862865,0.00013698,2]
[383639773,1757057441139,-481.54305315,0.00013698,2]
[383639774,1757057441148,-480.0,0.00013698,2]
[383639775,1757057441158,-580.64,0.00013698,2]
[383639776,1757057441167,-480.0,0.00013698,2]
[383639777,1757057441176,-480.0,0.00013698,2]
[383639778,1757057441186,-480.0,0.00013698,2]
[383639779,1757057441195,-482.59916147,0.00013698,2]
[383639780,1757057441204,-480.0,0.00013698,2]
[383639781,1757057441213,-509.40084903,0.00013698,2]
[383639782,1757057441222,-481.1770855,0.00013698,2]
[383639783,1757057441232,-482.48355005,0.00013698,2]
[383639784,1757057441241,-480.0,0.00013698,2]
[383639785,1757057441250,-480.0,0.00013698,2]
[383639786,1757057441260,-523.23478022,0.00013698,2]
[383639787,1757057441269,-517.52,0.00013698,2]
[383639788,1757057441279,-480.0,0.00013698,2]
[383639789,1757057441288,-481.11108741,0.00013698,2]
[383639790,1757057441298,-190.61,0.00013698,2]
[383639791,1757057441307,-356.8862492,0.00013698,2]
[383639792,1757057441317,-480.0,0.00013698,2]
[383639793,1757057441327,-480.0,0.00013698,2]
[383639794,1757057441337,-480.0,0.00013698,2]
[383639795,1757057441346,-594.8,0.00013698,2]
[383639796,1757057441356,-579.03265243,0.00013698,2]
[383639797,1757057441366,-482.48670952,0.00013698,2]
[383639798,1757057441376,-480.0,0.00013698,2]
[383639799,1757057441386,-480.0,0.00013698,2]
[383639800,1757057441396,-480.0,0.00013698,2]
[383639801,1757057441405,-601.75679412,0.00013698,2]
[383639802,1757057441415,-480.0,0.00013698,2]
[383639803,1757057441424,-480.0,0.00013698,2]
[383639804,1757057441434,-480.81,0.00013698,2]
[383639805,1757057441443,-480.0,0.00013698,2]
[383639806,1757057441452,-480.0,0.00013698,2]
[383639807,1757057441463,-480.0,0.00013698,2]
[383639808,1757057441472,-480.0,0.00013698,2]
[383639809,1757057441482,-480.0,0.00013698,2]
[383639810,1757057441494,-480.0,0.00013698,2]
[383639811,1757057441504,-1268.44,0.00013698,2]
[383639812,1757057441515,-500.0,0.00013698,2]
[383639813,1757057441524,-480.0,0.00013698,2]
[383639814,1757057441534,-500.0,0.00013698,2]
[383639815,1757057441543,-363.1610557,0.00013698,2]
[383639816,1757057441553,-480.0,0.00013698,2]
[383639817,1757057441563,-480.0,0.00013698,2]
[383639818,1757057441574,-480.0,0.00013698,2]
[383639819,1757057441585,-480.0,0.00013698,2]
[383639820,1757057441595,-480.0,0.00013698,2]
[383639821,1757057441605,-161.71010483,0.00013698,2]
[383639822,1757057441615,-480.0,0.00013698,2]
[383639823,1757057441625,-483.70607168,0.00013698,2]
[383639824,1757057441634,-480.0,0.00013698,2]
[383639825,1757057441643,-480.0,0.00013698,2]
[383639826,1757057441652,-480.0,0.00013698,2]
[383639827,1757057441660,-480.0,0.00013698,2]
[383639828,1757057441669,-480.0,0.00013698,2]
[383639829,1757057441678,-480.0,0.00013698,2]
[383639830,1757057441687,-480.0,0.00013698,2]
[383639831,1757057441697,-548.62,0.00013698,2]
[383639832,1757057441706,-480.0,0.00013698,2]
[383639833,1757057441715,-491.57811052,0.00013698,2]
[383639834,1757057441725,-480.0,0.00013698,2]
[383639835,1757057441735,-480.0,0.00013698,2]
[383639836,1757057441743,-480.0,0.00013698,2]
[383639837,1757057441752,-480.0,0.00013698,2]
[383639838,1757057441761,-238.1905722,0.00013698,2]
[383639839,1757057441769,-480.0,0.00013698,2]
[383639840,1757057441778,-480.0,0.00013698,2]
[383639841,1757057441787,-480.0,0.00013698,2]
[383639842,1757057441797,-480.0,0.00013698,2]
[383639843,1757057441806,-480.0,0.00013698,2]
[383639844,1757057441816,-480.0,0.00013698,2]
[383639845,1757057441827,-480.0,0.00013698,2]
[383639846,1757057441836,-480.0,0.00013698,2]
[383639847,1757057441950,-480.0,0.00013698,2]